bitfinex/quotes_ETHUSD_20250219
["timestamp","ask_amount","ask_price","bid_price","bid_amount"]
[1739982347855,3.68222,2715.8,2715.4,0.7882]
[1739982348310,0.7636,2715.9,2715.4,0.7882]
[1739982348515,0.8021,2716.1,2715.4,0.7882]
[1739982348675,3.68202,2715.9,2715.4,4.4708]
[1739982348877,4.48394,2716.1,2715.4,8.1534]
[1739982349213,4.48394,2716.1,2715.5,3.68253]
[1739982349214,4.48385,2716.1,2715.5,3.68253]
[1739982349382,4.48385,2716.1,2715.4,4.4708]
[1739982349383,3.68198,2716.0,2715.4,4.4708]
[1739982349587,4.48385,2716.1,2715.4,4.4708]
[1739982349588,3.68217,2715.8,2715.4,0.7882]
[1739982349820,3.68208,2715.9,2715.4,0.7882]
[1739982350488,4.48392,2716.1,2715.4,0.7882]
[1739982350684,5.24702538,2716.1,2715.4,4.47082]
[1739982350999,8.92885538,2716.1,2715.4,4.47082]
[1739982351189,3.68197,2716.0,2715.4,4.47082]
[1739982351390,3.68202,2715.9,2715.4,4.47082]
[1739982351786,1.56520538,2716.1,2715.4,0.7882]
[1739982351989,3.68209,2715.9,2715.4,0.7882]
[1739982352194,5.24703538,2716.1,2715.4,4.47089]
[1739982352521,4.20665354,2716.0,2715.4,0.7882]
[1739982352718,3.6821,2715.9,2715.4,0.7882]
[1739982352894,3.68215,2715.8,2715.4,0.7882]
[1739982353516,4.41230102,2715.9,2715.4,0.7882]
[1739982353682,3.68216,2715.8,2715.4,0.7882]
[1739982354217,4.41231102,2715.9,2715.4,0.7882]
[1739982354418,1.74864101,2715.9,2715.4,0.7882]
[1739982354630,3.68235,2715.7,2715.4,0.7882]
[1739982354826,3.68235,2715.7,2715.2,0.7694]
[1739982355204,3.68217,2715.8,2715.3,3.68281]
[1739982355422,3.68217,2715.8,2715.2,0.7694]
[1739982355423,3.68217,2715.8,2715.2,4.45235]
[1739982355759,3.68217,2715.8,2715.3,3.68282]
[1739982355913,1.74864101,2715.9,2715.3,3.68282]
[1739982355914,5.43067101,2715.9,2715.3,3.68282]
[1739982356116,0.73022102,2715.9,2715.3,3.68277]
[1739982356327,4.41235102,2715.9,2715.4,0.8109]
[1739982356505,0.73022102,2715.9,2715.4,4.49359]
[1739982357123,9.04172,2716.2,2715.5,3.68255]
[1739982357306,3.68189,2716.0,2715.4,4.49359]
[1739982357630,3.68208,2715.9,2715.4,0.8109]
[1739982359032,7.36422,2715.9,2715.4,0.8109]
[1739982359325,3.68208,2715.9,2715.4,0.8109]
[1739982359847,3.68208,2715.9,2715.4,4.49356]
[1739982360137,3.68208,2715.9,2715.4,0.8109]
[1739982360317,4.2180169,2715.9,2715.4,4.49353]
[1739982360637,7.9001269,2715.9,2715.4,4.49353]
[1739982361045,4.2180169,2715.9,2715.4,4.49353]
[1739982361254,4.2180169,2715.9,2715.4,0.8109]
[1739982361814,3.68222,2715.8,2715.4,0.8109]
[1739982362013,4.63997259,2715.8,2715.4,0.8109]
[1739982363835,0.72269688,2715.7,2715.4,0.8109]
[1739982364326,0.72269688,2715.7,2715.4,4.49357]
[1739982364947,0.72269688,2715.7,2715.4,0.8109]
[1739982365653,0.72269688,2715.7,2715.4,4.49356]
[1739982366351,3.68203,2715.9,2715.4,4.49356]
[1739982366646,4.43630567,2715.9,2715.4,4.49356]
[1739982367243,0.75427567,2715.9,2715.5,3.68255]
[1739982367547,0.75427567,2715.9,2715.6,3.68238]
[1739982367722,3.68197,2716.0,2715.4,0.8109]
[1739982367923,3.68194,2716.0,2715.4,4.49348]
[1739982368656,0.74645476,2716.1,2715.5,3.68247]
[1739982368854,4.42831476,2716.1,2715.6,3.68236]
[1739982369165,3.68189,2716.0,2715.6,3.68236]
[1739982369473,0.74645476,2716.1,2715.7,0.7663]
[1739982369620,4.48826,2716.6,2715.7,0.7663]
[1739982369815,9.04101,2716.7,2716.1,4.44804]
[1739982370144,0.72837811,2716.6,2716.1,0.7663]
[1739982370664,0.72837811,2716.6,2716.1,4.44795]
[1739982371157,0.72837811,2716.6,2716.2,0.7799]
[1739982371334,0.72837811,2716.6,2716.4,0.7633]
[1739982372718,0.72837811,2716.6,2716.4,4.44462]
[1739982373623,0.72837811,2716.6,2716.4,0.7633]
[1739982374266,0.72837811,2716.6,2716.5,3.6812]
[1739982374465,0.72837811,2716.6,2716.5,4.4962]
[1739982374643,5.36,2717.1,2716.5,0.815]
[1739982374957,5.36,2717.1,2716.9,0.7548]
[1739982375359,4.43441,2717.6,2716.9,4.43546]
[1739982375659,5.48005616,2717.6,2717.0,3.6805]
[1739982376026,1.04564616,2717.6,2717.0,3.6805]
[1739982376365,4.72547616,2717.6,2716.9,4.43546]
[1739982376563,3.67994,2717.5,2716.9,8.11603]
[1739982376865,0.72511875,2717.4,2716.9,4.43537]
[1739982377267,0.72511875,2717.4,2716.9,8.11596]
[1739982377456,0.72511875,2717.4,2717.0,3.68052]
[1739982377657,4.72547616,2717.6,2717.0,3.68052]
[1739982378301,4.72547616,2717.6,2716.9,0.7548]
[1739982378302,0.74763459,2717.5,2716.9,0.7548]
[1739982378465,0.74763459,2717.5,2716.9,4.43546]
[1739982379363,4.42759459,2717.5,2716.9,4.43546]
[1739982379773,0.74763459,2717.5,2717.0,3.68042]
[1739982379933,4.06403667,2717.8,2716.9,5.247092]
[1739982379934,3.67926,2718.0,2717.3,0.7589]
[1739982380130,3.67901,2718.2,2717.5,0.8103]
[1739982380436,3.67925,2718.0,2717.5,0.8103]
[1739982380636,3.67904,2718.1,2717.5,0.8103]
[1739982380866,0.723151,2717.6,2717.5,0.8103]
[1739982381070,0.723151,2717.6,2717.5,1.25932]
[1739982381480,0.723151,2717.6,2717.5,0.8103]
[1739982381972,4.402941,2717.6,2717.2,0.8157]
[1739982382176,3.67985,2717.5,2717.2,0.8157]
[1739982382383,3.68025,2717.2,2717.1,5.37]
[1739982382585,3.68025,2717.2,2716.4,7.10679565]
[1739982382586,3.68019,2717.3,2716.8,0.8297]
[1739982382768,3.68026,2717.2,2716.8,0.8297]
[1739982383381,3.68045,2717.1,2716.8,0.8297]
[1739982383538,3.68026,2717.2,2716.8,0.8297]
[1739982383940,3.68045,2717.1,2716.8,0.8297]
[1739982384354,3.68023,2717.3,2716.8,0.8297]
[1739982384951,1.514351,2717.6,2716.8,0.8297]
[1739982384952,8.873971,2717.6,2716.9,3.68066]
[1739982385147,8.082771,2717.6,2716.9,0.8297]
[1739982385390,8.082771,2717.6,2716.9,4.51036]
[1739982385678,3.67985,2717.5,2716.9,4.51036]
[1739982385977,3.68008,2717.4,2716.9,0.8297]
[1739982386145,3.68012,2717.3,2716.9,0.8297]
[1739982386540,1.1762881,2717.4,2716.9,0.8297]
[1739982386745,6.82725382,2717.3,2716.6,0.7547]
[1739982386945,6.82725382,2717.3,2716.4,0.7547]
[1739982386946,4.50162,2717.1,2716.4,0.7547]
[1739982387184,3.68109,2716.6,2716.4,0.7547]
[1739982387888,7.36176,2716.8,2716.4,0.7547]
[1739982388308,3.68094,2716.7,2716.4,0.7547]
[1739982388605,3.68059,2717.0,2716.4,1.198331]
[1739982388888,6.1554,2717.3,2716.5,0.8251]
[1739982389088,3.6806,2717.0,2716.5,0.8251]
[1739982389445,0.7954,2717.3,2716.5,4.50624]
[1739982389648,3.68,2717.4,2716.9,0.7813]
[1739982389883,3.68035,2717.2,2716.9,0.7813]
[1739982391049,3.68048,2717.1,2716.9,0.7813]
[1739982391250,3.68035,2717.2,2716.9,0.7813]
[1739982391450,3.68041,2717.1,2716.9,0.7813]
[1739982392194,3.68052,2717.0,2716.9,0.7813]
[1739982392398,3.68052,2717.0,2716.6,0.8134]
[1739982392399,3.68066,2716.9,2716.6,0.8134]
[1739982392693,3.6808,2716.8,2716.6,0.8134]
[1739982393601,0.7874,2717.1,2716.5,5.37]
[1739982393602,3.68107,2716.6,2716.5,5.37]
[1739982393765,3.68093,2716.7,2716.3,0.7756]
[1739982394499,3.68075,2716.9,2716.3,4.45707]
[1739982394675,3.68048,2717.1,2716.5,4.44154]
[1739982395002,9.7718517,2717.3,2716.6,4.44138]
[1739982395204,3.68026,2717.2,2716.6,4.44138]
[1739982395901,3.68045,2717.1,2716.6,4.44138]
[1739982396412,3.68052,2717.1,2716.6,0.7604]
[1739982396701,3.68012,2717.3,2716.7,3.68091]
[1739982396912,3.68012,2717.3,2716.8,4.45366]
[1739982397088,4.76483146,2717.6,2716.8,4.45366]
[1739982397293,3.68014,2717.3,2716.8,4.45366]
[1739982397474,1.08501146,2717.6,2716.8,0.7729]
[1739982397808,3.67985,2717.5,2716.9,3.68065]
[1739982398002,4.43110238,2717.4,2716.8,4.45368]
[1739982398211,3.68019,2717.3,2716.8,4.45368]
[1739982399270,0.75102238,2717.4,2716.8,4.45368]
[1739982399577,4.43107238,2717.4,2716.8,8.13439]
[1739982399778,4.43107238,2717.4,2716.8,9.03351497]
[1739982400117,0.75102238,2717.4,2716.9,0.8131]
[1739982400272,0.75102238,2717.4,2717.1,4.47711]
[1739982401383,3.67946,2717.8,2717.3,0.8139]
[1739982401629,3.67917,2718.0,2717.6,0.8139]
[1739982401823,4.41419258,2718.1,2717.6,0.8139]
[1739982401824,3.67945,2717.8,2717.6,0.8139]
[1739982402621,0.73506258,2718.1,2717.6,0.8139]
[1739982402824,3.67932,2717.9,2717.6,0.8139]
[1739982403026,3.67944,2717.8,2717.6,0.8139]
[1739982404213,7.35896,2717.8,2717.6,0.8139]
[1739982404398,3.67944,2717.8,2717.6,0.8139]
[1739982405098,7.35854,2718.0,2717.6,0.8139]
[1739982405294,3.67925,2718.0,2717.6,0.8139]
[1739982405505,3.67939,2717.9,2717.6,0.8139]
[1739982407024,3.67925,2718.0,2717.6,0.8139]
[1739982407224,3.67876,2718.3,2717.6,1.263273]
[1739982407426,3.67905,2718.1,2717.6,4.942973]
[1739982407590,3.67922,2718.0,2717.6,1.263273]
[1739982407789,3.6795,2717.8,2717.6,0.8139]
[1739982408087,3.6795,2717.8,2717.4,0.7937]
[1739982409023,3.67958,2717.7,2717.4,0.7937]
[1739982409368,3.67943,2717.9,2717.4,0.7937]
[1739982409864,3.6795,2717.8,2717.4,0.7937]
[1739982410230,3.6795,2717.8,2717.4,4.47367]
[1739982410566,3.67927,2718.0,2717.5,3.67982]
[1739982411346,3.67937,2717.9,2717.4,0.7937]
[1739982411875,3.67937,2717.9,2717.4,4.47367]
[1739982412167,3.67907,2718.1,2717.5,3.67978]
[1739982412350,3.67942,2717.9,2717.6,0.7677]
[1739982412556,3.67909,2718.1,2717.6,0.7677]
[1739982412738,4.36389917,2718.2,2717.6,0.7677]
[1739982412942,3.67919,2718.0,2717.6,0.7677]
[1739982413265,3.67886,2718.3,2717.7,0.7677]
[1739982413465,3.67898,2718.2,2717.7,0.7677]
[1739982413643,3.67904,2718.1,2717.7,0.7677]
[1739982413838,0.44059517,2718.3,2717.7,0.7677]
[1739982414031,3.67892,2718.2,2717.7,4.44727]
[1739982414227,7.35791,2718.2,2717.7,4.44727]
[1739982414431,3.67905,2718.1,2717.7,0.7677]
[1739982414741,3.67923,2718.0,2717.7,0.7677]
[1739982415068,0.735828,2718.0,2717.7,0.7677]
[1739982415238,3.67959,2717.7,2717.5,0.7677]
[1739982415444,3.67944,2717.8,2717.5,0.7677]
[1739982415839,3.67955,2717.8,2717.5,0.7677]
[1739982416246,3.67964,2717.7,2717.5,0.7677]
[1739982416469,3.67954,2717.8,2717.2,0.7677]
[1739982416630,3.67954,2717.8,2717.2,4.44792]
[1739982416826,3.67954,2717.8,2717.3,3.68011]
[1739982417029,0.7629,2718.2,2717.5,3.67977]
[1739982417661,3.67918,2718.0,2717.5,3.67977]
[1739982418057,3.6791,2718.1,2717.5,3.67977]
[1739982419039,3.6791,2718.1,2717.5,7.35956]
[1739982419574,3.6791,2718.1,2717.5,7.35952]
[1739982420252,3.6791,2718.1,2717.6,3.67971]
[1739982420778,0.44059517,2718.3,2717.7,3.71630569]
[1739982421070,3.67861,2718.5,2717.8,3.67939]
[1739982421276,3.5317437,2718.9,2717.9,0.7935]
[1739982421435,3.67839,2718.6,2718.0,3.67914]
[1739982422070,3.67839,2718.6,2718.1,3.67902]
[1739982422276,0.73583945,2718.7,2718.0,3.67914]
[1739982422480,5.20865377,2718.7,2718.1,3.67895]
[1739982422637,1.53041377,2718.7,2718.2,0.7874]
[1739982423159,3.67785,2719.0,2718.2,4.50305863]
[1739982423465,3.67785,2719.0,2718.5,0.8031]
[1739982423721,4.40025912,2719.1,2718.5,0.8031]
[1739982423926,3.6779,2719.0,2718.5,0.8031]
[1739982424440,3.67803,2718.9,2718.5,0.8031]
[1739982424758,4.43280329,2718.9,2718.5,0.8031]
[1739982424915,0.75477329,2718.9,2718.5,0.8031]
[1739982425254,3.67788,2719.0,2718.5,0.8031]
[1739982425399,3.67783,2719.0,2718.5,0.8031]
[1739982425595,3.86970294,2719.1,2718.5,4.48159]
[1739982425825,0.72256912,2719.1,2718.5,4.48159]
[1739982426101,0.72256912,2719.1,2718.5,4.48153]
[1739982426321,0.72256912,2719.1,2718.5,5.297549]
[1739982426635,0.72256912,2719.1,2718.6,3.67834]
[1739982426934,0.72256912,2719.1,2718.5,1.619119]
[1739982426935,4.40025912,2719.1,2718.5,5.297609]
[1739982427097,4.40027912,2719.1,2718.6,3.67833]
[1739982427301,0.72256912,2719.1,2718.6,3.67833]
[1739982427506,9.0375,2719.3,2718.7,0.8207]
[1739982427707,3.67739,2719.4,2718.7,4.49886]
[1739982428116,7.3548,2719.4,2718.7,4.49886]
[1739982428407,3.67743,2719.3,2718.7,4.49886]
[1739982428716,3.67749,2719.3,2718.7,4.49886]
[1739982428919,0.75412301,2719.4,2718.8,3.67809]
[1739982429226,4.43140301,2719.4,2718.9,0.8207]
[1739982430242,3.67728,2719.4,2718.9,4.49863]
[1739982430446,3.67715,2719.5,2718.9,8.1765]
[1739982430747,3.67709,2719.6,2719.0,3.67782]
[1739982431086,3.67701,2719.6,2719.0,3.67777]
[1739982431247,3.67717,2719.5,2719.0,3.67777]
[1739982431404,3.67701,2719.6,2719.0,3.67777]
[1739982432055,3.67698,2719.7,2719.1,3.6776]
[1739982432260,3.67667,2719.9,2719.2,4.88949]
[1739982432412,3.67667,2719.9,2719.3,3.67738]
[1739982432750,0.72951821,2719.9,2719.5,3.67713]
[1739982432950,0.72951821,2719.9,2719.5,3.67712]
[1739982433110,4.40611821,2719.9,2719.4,0.7684]
[1739982433312,4.40611821,2719.9,2719.4,1.625088]
[1739982433658,0.72951821,2719.9,2719.4,5.302268]
[1739982434027,0.72951821,2719.9,2719.4,5.302358]
[1739982434227,0.72951821,2719.9,2719.4,8.979568]
[1739982434452,0.72951821,2719.9,2719.4,5.302298]
[1739982434616,0.72951821,2719.9,2719.5,0.5302298]
[1739982434829,3.67654,2720.0,2719.5,0.5302298]
[1739982435466,3.14713382,2720.3,2719.5,0.5302298]
[1739982435467,3.67665,2719.9,2719.6,0.8302]
[1739982435667,3.67675,2719.8,2719.6,0.8302]
[1739982435824,3.38455614,2720.4,2719.6,0.8302]
[1739982436023,3.67654,2720.0,2719.6,1.280945]
[1739982436264,3.67674,2719.8,2719.6,1.280945]
[1739982436562,7.35315,2720.0,2719.6,0.8302]
[1739982436783,3.67661,2719.9,2719.6,0.8302]
[1739982437264,3.6766,2719.9,2719.6,0.8302]
[1739982437467,4.39974467,2720.0,2719.6,0.8302]
[1739982437765,3.67681,2719.8,2719.6,0.8302]
[1739982437975,3.67687,2719.7,2719.6,0.8302]
[1739982438274,3.67722,2719.5,2719.3,0.7735]
[1739982438472,3.6766,2719.9,2719.1,5.37]
[1739982438774,0.72325467,2720.0,2719.3,4.50165]
[1739982438945,4.39984467,2720.0,2719.4,3.67721]
[1739982439547,4.39984467,2720.0,2719.5,4.46194]
[1739982439548,0.72325467,2720.0,2719.5,4.46194]
[1739982439751,0.72325467,2720.0,2719.6,0.813915]
[1739982440069,3.67684,2719.8,2719.6,0.813915]
[1739982440373,3.67684,2719.8,2719.5,0.7849]
[1739982440575,0.73120687,2720.3,2719.5,0.7849]
[1739982440747,3.67626,2720.2,2719.8,0.7782]
[1739982441082,0.73120687,2720.3,2719.8,0.7782]
[1739982441263,0.73120687,2720.3,2719.8,5.268108]
[1739982441767,0.73120687,2720.3,2719.9,3.67648]
[1739982441969,3.67574,2720.6,2720.0,3.6764]
[1739982442127,3.67561,2720.7,2720.1,4.45448]
[1739982442365,0.72686015,2720.6,2720.1,0.7782]
[1739982442759,0.72686015,2720.6,2720.4,3.67585]
[1739982442945,3.6753,2720.9,2720.5,0.7892]
[1739982444437,3.67548,2720.8,2720.5,0.7892]
[1739982445473,3.67576,2720.6,2720.2,0.791]
[1739982445673,7.55763374,2721.1,2720.1,5.37]
[1739982445674,3.676,2720.4,2720.1,5.37]
[1739982446038,4.45497,2720.7,2720.1,5.37]
[1739982446277,3.67557,2720.7,2720.1,5.37]
[1739982446477,3.67557,2720.7,2720.0,4.46743]
[1739982446478,3.14713382,2720.5,2720.0,0.791]
[1739982446703,3.67627,2720.2,2720.0,0.791]
[1739982446919,3.67602,2720.4,2720.0,0.791]
[1739982447089,3.67572,2720.6,2720.0,0.791]
[1739982447602,3.67579,2720.5,2720.0,0.791]
[1739982448125,4.42589,2720.7,2720.0,1.237773]
[1739982448288,3.67565,2720.7,2720.0,4.914233]
[1739982448486,7.90568737,2721.0,2720.0,1.237773]
[1739982448730,3.67594,2720.4,2720.0,0.791]
[1739982449724,3.67569,2720.6,2720.0,0.791]
[1739982449918,3.67569,2720.6,2720.0,4.46737]
[1739982450280,3.67588,2720.5,2720.0,0.791]
[1739982451179,3.67569,2720.6,2720.0,0.791]
[1739982451379,0.73344356,2720.7,2720.0,4.95090861]
[1739982451575,3.67548,2720.8,2720.2,0.804]
[1739982451780,3.67572,2720.6,2720.2,0.804]
[1739982452402,3.67582,2720.5,2720.2,0.804]
[1739982452724,3.67566,2720.6,2720.2,0.804]
[1739982452880,3.6758,2720.5,2720.2,0.804]
[1739982454126,3.67562,2720.7,2720.2,0.804]
[1739982454127,3.67567,2720.6,2720.2,0.804]
[1739982455095,3.67567,2720.6,2720.2,1.2967127]
[1739982455432,3.67574,2720.6,2720.2,1.2967127]
[1739982455919,3.67587,2720.5,2720.2,1.2967127]
[1739982456521,3.67587,2720.5,2720.2,0.804]
[1739982456704,3.67605,2720.4,2720.2,0.804]
[1739982457078,3.67579,2720.5,2720.2,0.804]
[1739982457283,3.6757,2720.6,2720.2,0.804]
[1739982457582,3.67579,2720.5,2720.2,0.804]
[1739982457987,3.67548,2720.8,2720.2,0.804]
[1739982458220,4.42167661,2720.9,2720.2,1.2967207]
[1739982458428,3.67606,2720.3,2719.9,5.37]
[1739982458729,3.67606,2720.3,2720.0,0.7585]
[1739982459930,4.46509,2720.6,2719.5,8.92]
[1739982459931,3.67621,2720.2,2719.6,0.7522]
[1739982460221,3.67648,2720.0,2719.6,0.7522]
[1739982460520,3.67667,2719.9,2719.6,0.7522]
[1739982460722,3.6768,2719.8,2719.6,0.7522]
[1739982460925,3.67667,2719.9,2719.6,0.7522]
[1739982461088,4.43481,2720.1,2719.6,0.7522]
[1739982461312,4.43481,2720.1,2719.1,9.2]
[1739982461313,3.67669,2719.9,2719.3,0.03677014]
[1739982461517,0.7584,2720.1,2719.4,0.8185]
[1739982461518,3.67674,2719.8,2719.4,0.8185]
[1739982461756,4.43482,2720.1,2719.4,0.8185]
[1739982461960,3.67667,2719.9,2719.4,0.8185]
[1739982462261,7.35338,2719.9,2719.4,0.8185]
[1739982462749,7.35338,2719.9,2719.4,0.7767]
[1739982462954,3.6768,2719.8,2719.4,0.7767]
[1739982465847,3.67661,2719.9,2719.4,0.7767]
[1739982466154,3.67676,2719.8,2719.4,0.7767]
[1739982466656,3.67701,2719.6,2719.4,0.7767]
[1739982466857,3.67714,2719.5,2719.4,0.7767]
[1739982467228,3.67748,2719.3,2719.0,0.7906]
[1739982467431,3.67768,2719.1,2719.0,0.7906]
[1739982467743,4.412605,2719.5,2718.6,0.8092]
[1739982468059,7.35548,2719.1,2718.6,0.8092]
[1739982468263,4.412605,2719.5,2718.6,0.8092]
[1739982468264,3.67816,2718.8,2718.6,0.8092]
[1739982468426,3.67816,2718.8,2718.4,6.1676]
[1739982468427,3.67832,2718.7,2718.4,6.1676]
[1739982468618,3.67837,2718.6,2718.4,0.7976]
[1739982468824,3.67849,2718.5,2718.4,0.7976]
[1739982469023,0.7594,2718.6,2717.9,0.7976]
[1739982469266,3.67914,2718.1,2717.6,1.0353]
[1739982469468,3.67914,2718.1,2717.6,0.7553]
[1739982471170,3.67881,2718.3,2717.7,3.67955]
[1739982471671,3.67858,2718.5,2717.7,3.67955]
[1739982471835,3.67863,2718.4,2717.6,0.7553]
[1739982472382,3.95590228,2718.4,2717.7,3.67956]
[1739982472674,4.97303138,2718.5,2717.7,3.67956]
[1739982472871,4.97303138,2718.5,2717.8,0.8057]
[1739982473178,3.67884,2718.3,2717.8,0.8057]
[1739982473736,4.97303138,2718.5,2717.8,4.48512]
[1739982473945,4.25188314,2718.4,2717.8,0.8057]
[1739982474140,0.57324314,2718.4,2717.8,0.8057]
[1739982474506,7.35763,2718.3,2717.8,0.8057]
[1739982474782,3.67904,2718.1,2717.8,0.8057]
[1739982475758,3.67878,2718.3,2717.8,0.8057]
[1739982475940,0.42520231,2718.2,2717.8,0.8057]
[1739982476141,4.25189314,2718.4,2717.8,4.48512]
[1739982476570,3.67878,2718.3,2717.8,4.48512]
[1739982477694,1.16506973,2719.0,2717.9,3.94063382]
[1739982477847,4.45798,2719.3,2718.4,3.67863]
[1739982478047,4.15151181,2719.2,2718.5,0.7585]
[1739982478247,3.67782,2719.0,2718.5,0.7585]
[1739982478444,3.67807,2718.9,2718.5,0.7585]
[1739982478748,3.67821,2718.8,2718.5,0.7585]
[1739982479587,3.67807,2718.9,2718.5,0.7585]
[1739982479745,8.091684,2718.9,2718.5,0.7585]
[1739982479951,4.413614,2718.9,2718.5,0.7585]
[1739982480491,0.735584,2718.9,2718.5,0.7585]
[1739982480646,3.67775,2719.1,2718.5,4.4369]
[1739982480850,3.6779,2719.0,2718.5,4.4369]
[1739982481350,3.67789,2719.0,2718.5,0.7585]
[1739982481589,3.67803,2718.9,2718.5,0.7585]
[1739982482149,7.3561,2718.9,2718.5,0.7585]
[1739982482345,3.67803,2718.9,2718.5,0.7585]
[1739982482796,0.735579,2718.9,2718.5,0.7585]
[1739982483096,3.67867,2718.4,2717.9,0.8216]
[1739982483278,3.67898,2718.2,2717.9,0.8216]
[1739982483592,3.67876,2718.4,2717.9,0.8216]
[1739982483792,3.0,2718.6,2717.9,0.8216]
[1739982484042,3.6787,2718.4,2717.9,0.8216]
[1739982484335,3.67879,2718.3,2717.9,0.8216]
[1739982484636,3.67876,2718.3,2717.9,0.8216]
[1739982484835,3.67871,2718.4,2717.9,0.8216]
[1739982485495,3.67877,2718.3,2717.9,0.8216]
[1739982485696,3.67899,2718.2,2717.9,0.8216]
[1739982485929,7.35799,2718.2,2717.9,0.8216]
[1739982486093,3.67924,2718.0,2717.6,0.7594]
[1739982486752,0.7525,2718.3,2717.6,4.43911]
[1739982486926,6.67897,2718.2,2717.6,4.43911]
[1739982487109,3.67915,2718.1,2717.6,0.7594]
[1739982487309,3.67931,2717.9,2717.6,0.7594]
[1739982487723,3.67915,2718.1,2717.6,0.7594]
[1739982488054,0.367915,2718.0,2717.6,0.7594]
[1739982488650,4.047195,2718.0,2717.6,0.7594]
[1739982489053,3.0,2718.3,2717.6,0.7594]
[1739982489054,1.50856135,2718.5,2717.7,3.67954]
[1739982489351,3.0,2718.1,2717.6,4.43902]
[1739982489555,5.18714135,2718.5,2717.6,4.43902]
[1739982489711,3.67864,2718.4,2717.8,3.67933]
[1739982489908,6.67888,2718.3,2717.6,0.7594]
[1739982490110,3.88657814,2718.4,2717.6,0.7594]
[1739982490336,7.35854,2718.0,2717.6,0.7594]
[1739982490608,3.67931,2717.9,2717.6,0.7594]
[1739982491441,3.67918,2718.0,2717.6,0.7594]
[1739982491631,4.414998,2718.0,2717.6,0.7594]
[1739982492454,0.735818,2718.0,2717.6,0.7594]
[1739982492663,0.735818,2718.0,2717.6,4.43908]
[1739982493378,3.0,2718.1,2717.6,4.4391]
[1739982493691,3.67883,2718.3,2717.7,3.67958]
[1739982494375,3.88657814,2718.4,2717.9,3.6793]
[1739982494678,3.678,2718.9,2718.2,3.67883]
[1739982494981,3.6782,2718.8,2718.3,0.7515]
[1739982495283,3.67829,2718.7,2718.3,0.7515]
[1739982495435,3.67837,2718.6,2718.3,0.7515]
[1739982495636,0.367837,2718.5,2718.0,0.7515]
[1739982495836,7.35803,2718.2,2717.9,5.37]
[1739982496030,3.67871,2718.4,2717.9,5.37]
[1739982496265,3.67897,2718.2,2717.9,5.37]
[1739982496462,3.6791,2718.1,2717.8,0.7515]
[1739982496673,3.6791,2718.1,2717.6,0.7525]
[1739982496674,4.04701,2718.1,2717.6,0.7525]
[1739982496844,3.67918,2718.0,2717.6,0.7525]
[1739982497048,4.04701,2718.1,2717.6,0.7525]
[1739982497484,3.67924,2718.0,2717.6,0.7525]
[1739982497785,3.67936,2717.9,2717.6,0.7525]
[1739982498090,0.36791,2718.1,2717.6,0.7525]
[1739982498091,4.04705,2718.1,2717.6,0.7525]
[1739982498273,0.855355,2718.0,2717.6,0.7525]
[1739982499283,4.5092,2718.4,2717.6,0.7525]
[1739982499617,5.23627433,2718.4,2717.7,3.67951]
[1739982499780,3.67885,2718.3,2717.7,3.67951]
[1739982500465,0.8305,2718.4,2717.7,3.67951]
[1739982500667,3.67892,2718.2,2717.7,3.67951]
[1739982500867,0.818826,2718.2,2717.7,3.67948]
[1739982501389,3.67878,2718.3,2717.7,3.67948]
[1739982501704,3.6787,2718.4,2717.8,4.48016]
[1739982501887,3.67877,2718.3,2717.8,4.48016]
[1739982502102,3.67883,2718.3,2717.8,0.8008]
[1739982502264,3.67913,2718.1,2717.8,0.8008]
[1739982502471,4.047043,2718.1,2717.8,0.8008]
[1739982503296,0.367913,2718.1,2717.8,0.8008]
[1739982504169,3.67891,2718.2,2717.8,0.8008]
[1739982504372,3.67877,2718.3,2717.8,4.48021]
[1739982504617,3.67857,2718.5,2717.9,3.67929]
[1739982504912,3.67857,2718.5,2717.8,0.8008]
[1739982504913,3.67868,2718.4,2717.8,0.8008]
[1739982505468,3.67857,2718.5,2717.8,0.8008]
[1739982505667,0.367857,2718.4,2717.8,4.48017]
[1739982505978,3.67844,2718.6,2718.0,3.67914]
[1739982506170,3.67844,2718.6,2717.5,3.95981]
[1739982506171,5.36,2718.8,2718.1,4.46012]
[1739982506772,5.36,2718.8,2718.3,3.6787]
[1739982506973,5.36,2718.8,2718.4,0.7811]
[1739982507480,3.67799,2718.9,2718.4,4.45967]
[1739982507481,3.67797,2718.9,2718.4,4.45967]
[1739982508013,5.36,2719.2,2718.5,3.67848]
[1739982508185,5.36,2719.2,2718.5,3.67849]
[1739982508186,1.02351719,2719.1,2718.5,3.67849]
[1739982508925,4.06210192,2719.3,2718.7,0.8114]
[1739982509090,3.67745,2719.3,2718.7,0.8114]
[1739982509614,7.35498,2719.3,2718.7,0.8114]
[1739982509814,3.67771,2719.1,2718.7,0.8114]
[1739982509977,3.67784,2719.0,2718.7,0.8114]
[1739982510193,3.67805,2718.9,2718.7,0.8114]
[1739982510396,4.413395,2719.0,2718.3,0.8114]
[1739982510397,3.67809,2718.8,2718.3,0.8114]
[1739982511293,3.67804,2718.9,2718.3,4.4901]
[1739982511693,3.67804,2718.9,2717.5,16.62287204]
[1739982511694,1.3784,2718.8,2717.4,0.7657]
[1739982511896,0.55,2718.3,2717.4,0.7657]
[1739982512236,3.67965,2717.7,2717.4,0.7657]
[1739982512437,3.67936,2717.9,2717.4,0.7657]
[1739982513997,7.35878,2717.9,2717.4,0.7657]
[1739982514215,3.67953,2717.8,2717.4,0.7657]
[1739982514990,3.6796,2717.7,2717.4,0.7657]
[1739982515193,3.67953,2717.8,2717.4,0.7657]